Cogmind - Beta 13 X1 @@@ ROGUE MODE // 2023.12.04 @ 18:56:37 Player: Plexion Result: Destroyed by D-53 Grenadier with Mini Grenade Launcher Performance ------------- Evolutions (0) 0 Regions Visited (4) 800 Robots Destroyed (33) 165 Value Destroyed (622) 622 Prototype IDs (1) 20 Alien Tech Used (0) 0 Bonus (28) 28 TOTAL SCORE: 1635 Bonus ------- Follower Combat Kills 28 Cogmind --------- Core Integrity 0/250 Matter 176/300 Energy 77/100 System Corruption 1% Temperature Cool (0) Movement Treading (240) Ox1 Location -9/Mines Parts ------- > --- POWER (1) -------- (None) > --- PROPULSION (2) --- Light Treads Light Treads > --- UTILITY (2) ------ Huge Storage Unit > --- WEAPON (2) ------- (None) > --- INVENTORY (25) --- Light Ion Engine Light Treads Large Storage Unit High-capacity Matter Pod (200) Salvage Targeting Computer Salvage Targeting Computer Targeting Computer Targeting Computer Light Armor Plating Light Armor Plating High-powered Tractor Beam Thief Drone Bay (3/3) Assault Rifle Assault Rifle Heavy Assault Rifle Light Cannon Light Cannon Flail Katana Peak State ------------ > --- POWER ------------ Light Ion Engine > --- PROPULSION ------- Wheel Wheel > --- UTILITY ---------- Huge Storage Unit Thief Drone Bay > --- WEAPON ----------- Heavy Assault Rifle Heavy Assault Rifle > --- INVENTORY -------- Light Ion Engine Light Treads Light Treads Light Treads Light Treads Light Treads Large Storage Unit High-capacity Matter Pod Salvage Targeting Computer Salvage Targeting Computer Targeting Computer Targeting Computer Light Armor Plating Light Armor Plating Light Armor Plating High-powered Tractor Beam Assault Rifle Assault Rifle Assault Rifle Assault Rifle Light Cannon Light Cannon Grenade Launcher Flail Katana [Rating: 18] Favorites ----------- Power Light Ion Engine Engine Light Ion Engine Propulsion Light Treads Treads Light Treads Wheel Wheel Utility Light Armor Plating Device Thief Drone Bay Storage Huge Storage Unit Processor Salvage Targeting Computer Protection Light Armor Plating Weapon Assault Rifle Ballistic Gun Assault Rifle Launcher Grenade Launcher Impact Weapon Flail Build | -11 -10 -10 -10 -9 ------- Run | Jun Mat Min Exi Min Slots Evolved . | . . . . . Power . | . . . . . Propulsion . | . . . . . Utility . | . . . . . Weapon . | . . . . . Parts Attached 38 | 6 10 10 2 10 Power 2 | 1 . 1 . . Engine 2 | 1 . 1 . . Core . | . . . . . Reactor . | . . . . . Propulsion 11 | 2 . 5 . 4 Treads 9 | 2 . 3 . 4 Leg . | . . . . . Wheel 2 | . . 2 . . Hover . | . . . . . Flight . | . . . . . Utility 8 | 1 4 1 . 2 Device 1 | . . . . 1 Storage 4 | 1 2 1 . . Processor 1 | . 1 . . . Hackware . | . . . . . Protection 2 | . 1 . . 1 Artifact . | . . . . . Weapon 17 | 2 6 3 2 4 Energy Gun . | . . . . . Energy Cannon . | . . . . . Ballistic Gun 13 | 2 4 3 2 2 Ballistic Cannon . | . . . . . Launcher 2 | . . . . 2 Special Weapon . | . . . . . Impact Weapon 2 | . 2 . . . Slashing Weapon . | . . . . . Piercing Weapon . | . . . . . Special Melee Weapon . | . . . . . Unidentified Prototypes 1 | . . . . 1 Parts Lost 12 | . . 2 . 10 Power 2 | . . 1 . 1 Propulsion 4 | . . . . 4 Utility 1 | . . . . 1 Weapon 5 | . . 1 . 4 Highest Loss Streak 10 | . . 1 . 10 To Critical Strikes . | . . . . . Average Slot Usage (%) 96 | . 96 98 77 98 Engine 13 | . 14 12 14 13 Treads 21 | . 28 26 . . Wheel 6 | . . 1 28 27 Device 1 | . . . . 6 Storage 14 | . 14 14 14 14 Processor 2 | . 7 . . . Protection 9 | . 3 14 14 7 Ballistic Gun 26 | . 27 28 5 27 Naked Turns . | . . . . . Heaviest Build 93 | 10 30 92 92 93 Greatest Support 40 | 40 40 40 20 40 Greatest Overweight (x) 9 | . . 9 4 4 Average Overweight (x) 1 | . . 1 4 3 Largest Inventory Capacity 25 | 8 15 25 25 25 Average Capacity 17 | 6 11 20 25 25 Most Carried 25 | 2 13 23 25 25 Average Carried 15 | . 8 16 24 23 Final Capacity 25 | 8 15 25 25 25 Final Carried 23 | 2 12 23 23 19 Class Distribution -------------------- 62% | Mutant 37% | Scavenger-Mutant Dominant Class ---------------- Mutant | -10/Materials Scavenger-Mutant | -10/Mines Mutant | -10/Exiles Scavenger-Mutant | -9/Mines Resources | -11 -10 -10 -10 -9 ----------- Run | Jun Mat Min Exi Min Matter Collected 1204 | 231 335 539 . 99 Remotely . | . . . . . Salvage Created 1080 | . 396 443 . 241 Parts 62 | . 29 27 . 6 Haulers Intercepted 2 | . 2 . . . Recyclers Shooed . | . . . . . Parts Field Recycled . | . . . . . Retrieved Matter . | . . . . . Parts Self-Destructed . | . . . . . Prevented . | . . . . . Kills | -11 -10 -10 -10 -9 ------- Run | Jun Mat Min Exi Min Combat Hostiles Destroyed 29 | . 12 8 . 9 Guns 23 | . 12 8 . 3 AOE 6 | . . . . 6 Classes Destroyed 11 | . 5 4 . 2 Worker 3 | . . 3 . . Builder 1 | . . 1 . . Tunneler 1 | . 1 . . . Hauler 2 | . 2 . . . Recycler 2 | . . 1 . 1 Watcher 1 | . 1 . . . Swarmer 12 | . 9 3 . . Grunt 8 | . 3 3 . 2 Duelist 1 | . . . . 1 Sentry 2 | . . 2 . . Assembled 6 | . . . . 6 Best Kill Streak 6 | . 3 3 . 6 Combat Bots Only 6 | . 3 3 . 6 Max Kills in Single Turn 4 | . 1 2 . 4 Gunslinging 1 | . . 1 . . Exploded 4 | . . . . 4 Melee . | . . . . . Uniques/NPCs Destroyed . | . . . . . Combat | -11 -10 -10 -10 -9 -------- Run | Jun Mat Min Exi Min Damage Taken 1819 | . 304 315 . 1200 Core 255 | . 27 47 . 181 Absorbed by Shields . | . . . . . Core Remaining (%) 100 | 100 . . . . Volleys Fired 100 | . 53 26 . 21 Largest 2 | . 2 2 . 2 Hottest 46 | . 40 46 . 46 Shots Fired 191 | . 106 52 . 33 Gun 184 | . 106 52 . 26 Cannon . | . . . . . Launcher 7 | . . . . 7 Special . | . . . . . Kinetic 184 | . 106 52 . 26 Thermal . | . . . . . Explosive 7 | . . . . 7 Electromagnetic . | . . . . . Robot Hit Streak 11 | . 9 10 . 11 Robot Miss Streak 5 | . 5 4 . 2 Penetration Max . | . . . . . Secondary Targets 2 | . 1 1 . . Max Gunslinging Chain 1 | . 1 1 . . Shots Hit Robots 111 | . 57 34 . 20 Core Hits 69 | . 22 19 . 28 Critical Kills . | . . . . . Critical Parts Destroyed . | . . . . . Critical Strikes . | . . . . . Melee Attacks 5 | . 5 . . . Impact 5 | . 5 . . . Slashing . | . . . . . Piercing . | . . . . . Sneak Attacks . | . . . . . Combat Hostiles . | . . . . . Follow-up Attacks . | . . . . . Damage Inflicted 1911 | . 799 480 . 632 Guns 1500 | . 769 476 . 255 Cannons . | . . . . . Explosions 332 | . . . . 332 Melee . | . . . . . Ramming 79 | . 30 4 . 45 Kinetic 1500 | . 769 476 . 255 Thermal . | . . . . . Explosive 332 | . . . . 332 Electromagnetic . | . . . . . Impact . | . . . . . Slashing . | . . . . . Piercing . | . . . . . Highest Corruption 1 | . 1 1 1 1 Average Corruption 1 | . 1 1 1 1 Corruption Purged . | . . . . . Corruption Blocked . | . . . . . Effects 19 | . 2 14 2 1 Message Errors 7 | . 1 5 1 . Matter Fused 2 | . . 2 . . Heat Flow Errors 3 | . . 3 . . Energy Discharges 3 | . 1 1 . 1 Data Loss (minor) 4 | . . 3 1 . Overload Shots . | . . . . . Overflow Damage . | . . . . . Projectiles . | . . . . . Explosions . | . . . . . Melee . | . . . . . Knockbacks . | . . . . . Impact . | . . . . . Kinetic . | . . . . . Secondary . | . . . . . Self-Inflicted Damage 94 | . . . . 94 Shots 2 | . . . . 2 Rammed 15 | . 10 1 . 4 Targets Rammed 16 | . 10 2 . 4 Kicked . | . . . . . Crushed 1 | . . 1 . . Highest Temperature 246 | . 2 246 . 18 Average Temperature 39 | . 2 60 . 7 Received Heat Transfer 236 | . 54 126 . 56 Siege Activations . | . . . . . Robots Corrupted . | . . . . . Combat Hostiles . | . . . . . Parts Fried . | . . . . . Impact Corruptions . | . . . . . Robots Melted . | . . . . . Combat Hostiles . | . . . . . Parts Melted . | . . . . . Heat Transferred . | . . . . . Parts Sabotaged . | . . . . . Parts Stolen . | . . . . . Parts Stripped . | . . . . . Power Chain Reactions . | . . . . . Missiles Intercepted . | . . . . . Alert | -11 -10 -10 -10 -9 ------- Run | Jun Mat Min Exi Min Peak Influence 207 | . 207 165 . 109 Initial 61 | . . 61 . . Average 64 | . 89 53 . 48 Maximum Alert Level 1 | . 1 . . . Low Security (%) 98 | 100 95 100 . 100 Level 1 1 | . 4 . . . Level 2 . | . . . . . Level 3 . | . . . . . Level 4 . | . . . . . Level 5 . | . . . . . High Security . | . . . . . Max Security . | . . . . . Squads Dispatched 3 | . 3 . . . Investigation 3 | . 3 . . . Extermination . | . . . . . Reinforcement . | . . . . . Assault . | . . . . . Garrison . | . . . . . Intercept . | . . . . . Searches Triggered . | . . . . . Construction Impeded . | . . . . . Haulers Reinforced . | . . . . . Active Scanning Responses . | . . . . . Cargo Convoy Interrupts . | . . . . . Stealth | -11 -10 -10 -10 -9 --------- Run | Jun Mat Min Exi Min Distress Signals 1 | . 1 . . . Communications Jammed . | . . . . . Distress Signals . | . . . . . Times Spotted 56 | . 23 10 . 23 Peak Tracking Total 7 | . 5 3 . 7 Tactical Retreats 2 | . 1 1 . . Traps | -11 -10 -10 -10 -9 ------- Run | Jun Mat Min Exi Min Traps Triggered 2 | . 2 . . . Indirectly . | . . . . . Trap Hack Attempts . | . . . . . Triggered . | . . . . . Disarmed . | . . . . . Reprogrammed . | . . . . . Reused 2 | . . 2 . . Traps Extracted . | . . . . . Installed 4 | . . 4 . . Triggered 2 | . . 2 . . Most Traps Carried 1 | . . 1 . . Machines | -11 -10 -10 -10 -9 ---------- Run | Jun Mat Min Exi Min Machines Disabled 2 | . 1 . . 1 Max in Single Turn 1 | . 1 . . . Machines Repaired . | . . . . . Machines Sabotaged . | . . . . . Overloaded Fab Kills . | . . . . . Hacking | -11 -10 -10 -10 -9 --------- Run | Jun Mat Min Exi Min Machines Accessed 11 | . 9 . . 2 Terminals 8 | . 7 . . 1 Fabricators . | . . . . . Repair Stations . | . . . . . Recycling Units 2 | . 2 . . . Scanalyzers . | . . . . . Garrison Access . | . . . . . Total Hacks 25 | . 20 . . 5 Successful 10 | . 8 . . 2 Failed 14 | . 12 . . 2 Catastrophic 4 | . 3 . . 1 Database Lockouts 1 | . . . . 1 Manual 24 | . 20 . . 4 Terminals 21 | . 17 . . 4 Fabricators . | . . . . . Repair Stations . | . . . . . Recycling Units 3 | . 3 . . . Scanalyzers . | . . . . . Garrison Access . | . . . . . Terminal Hacks 6 | . 4 . . 2 Part Schematic 1 | . 1 . . . Robot Analysis 3 | . 2 . . 1 Open Door 1 | . . . . 1 Zone Layout 1 | . 1 . . . Fabricator Hacks . | . . . . . Repair Station Hacks . | . . . . . Recycling Unit Hacks . | . . . . . Scanalyzer . | . . . . . Garrison Access Hacks . | . . . . . Unauthorized Hacks 4 | . 4 . . . Terminals 2 | . 2 . . . Disrupt 1 | . 1 . . . Operators 1 | . 1 . . . Fabricators . | . . . . . Repair Stations . | . . . . . Recycling Units 2 | . 2 . . . Tunnel 2 | . 2 . . . Scanalyzers . | . . . . . Garrison Access . | . . . . . Data Cores Recovered . | . . . . . Used . | . . . . . Hacking Detections 8 | . 7 . . 1 Full Trace Events . | . . . . . Feedback Events . | . . . . . Feedback Blocked . | . . . . . Robot Schematics Acquired . | . . . . . Robots Built . | . . . . . Authchips . | . . . . . Time . | . . . . . Total Robot Build Rating . | . . . . . Part Schematics Acquired 1 | . 1 . . . Parts Built . | . . . . . Authchips . | . . . . . Time . | . . . . . Total Part Build Rating . | . . . . . Parts Repaired . | . . . . . Time . | . . . . . Parts Recycled . | . . . . . Recycled Matter . | . . . . . Retrieved Matter . | . . . . . Retrieved Components . | . . . . . Parts Scanalyzed . | . . . . . Part Schematics Acquired . | . . . . . Parts Damaged . | . . . . . Bothacking | -11 -10 -10 -10 -9 ------------ Run | Jun Mat Min Exi Min Used RIF Installer . | . . . . . Robots Hacked . | . . . . . Non-combat . | . . . . . Combat . | . . . . . Robot Hacks Applied . | . . . . . Relay Couplers Released . | . . . . . Fabnet Peak Effective % . | . . . . . Robots Rewired . | . . . . . Allies Hacked . | . . . . . Hacks Repelled . | . . . . . Allies | -11 -10 -10 -10 -9 -------- Run | Jun Mat Min Exi Min Total Allies 4 | . . . . 4 Largest Group 3 | . . . . 3 Highest-Rated Group 40 | . . . . 40 Highest-Rated Ally 31 | . . . . 31 Total Orders 1 | . . . . 1 RETURN 1 | . . . . 1 Ally Attacks 24 | . . . . 24 Total Damage 206 | . . . . 206 Kills 7 | . . . . 7 Allies Corrupted . | . . . . . Allies Melted . | . . . . . Intel | -11 -10 -10 -10 -9 ------- Run | Jun Mat Min Exi Min Robot Analysis Total 3 | . 2 . . 1 Derelict Logs Recovered 4 | . . 2 . 2 Drone Launches 1 | . . . . 1 Drone Recoveries 1 | . . . . 1 Exploration | -11 -10 -10 -10 -9 ------------- Run | Jun Mat Min Exi Min Turns Passed 3966 | 82 1334 1709 235 606 Spaces Moved 2031 | 47 697 753 166 368 Core 3 | 3 . . . . Treads 1424 | 44 697 681 . 2 Legs . | . . . . . Wheels 604 | . . 72 166 366 Hover . | . . . . . Flight . | . . . . . Fastest Speed 50 | 50 160 140 140 140 Average Speed 172 | 152 160 207 140 140 Slowest Speed 320 | 160 160 320 140 240 Overloaded Moves . | . . . . . Propulsion Burnouts . | . . . . . Robots Hopped . | . . . . . Cave-ins Triggered . | . . . . . Exploration Rate (%) 60 | 4 90 98 56 55 Regions Visited 4 Branch Regions 3 Pre-discovered Areas 5 | . 2 2 . 1 Known Exits Taken . | . . . . . Unknown Exits Taken 4 | 1 1 1 1 . Scrap Searched 3 | . . 1 . 2 Spaces Dug 3 | . 3 . . . Terrain Destroyed 44 | . 3 . . 41 Melee 3 | . 3 . . . Projectile . | . . . . . AOE 41 | . . . . 41 Terrain Rammed . | . . . . . Walls Destroyed . | . . . . . Machines Disabled . | . . . . . Actions | -11 -10 -10 -10 -9 --------- Run | Jun Mat Min Exi Min Total 2289 | 54 797 847 169 422 Wait 54 | . 2 35 . 17 Move 2027 | 46 696 752 165 368 Hop . | . . . . . Pick Up 29 | 2 14 12 . 1 Fast Attach 10 | 6 1 2 . 1 Attach 9 | . . 1 2 6 Detach 4 | . . 1 2 1 Swap 19 | . 9 7 . 3 Drop 12 | . 7 5 . . Fire 100 | . 53 26 . 21 Melee 5 | . 5 . . . Ram 4 | . . . . 4 Kick . | . . . . . Crush 12 | . 10 2 . . Escape Stasis . | . . . . . Rewire . | . . . . . Trap 4 | . . 4 . . Miscellaneous . | . . . . . Route ------- -11/Junkyard -10/Materials (discovered 4 exits: [*Mat x3] / [*Min]) -10/Mines (discovered 4 exits: [*Mat x2] / [*Exi] / [*Sub]) -10/Exiles -9/Mines (discovered 1 exit: [*Mat]) History --------- Turn | Location | Event 30 | -11/Junkyard | Discovered new exit (range 16) 83 | -11/Junkyard | Entered Materials 204 | -10/Materials | Discovered new exit (range 16) 302 | -10/Materials | Build established: Mutant 556 | -10/Materials | Discovered new exit (range 5) 740 | -10/Materials | Discovered new exit (range 13) 826 | -10/Materials | Discovered new exit (range 16) 1417 | -10/Materials | Entered Mines 1417 | -10/Mines | Discovered new exit (range 12) 1552 | -10/Mines | Learned Materials trap positions 1627 | -10/Mines | Discovered new exit (range 9) 1681 | -10/Mines | Learned location of Zion (-6) 1741 | -10/Mines | Found a hidden stash of uninstalled traps 2423 | -10/Mines | Discovered new exit (range 14) 2570 | -10/Mines | Build established: Scavenger-Mutant 2816 | -10/Mines | Deemed a non-threat by the Exiles lab entrance 2819 | -10/Mines | Discovered new exit (range 5) 3126 | -10/Mines | Entered Exiles 3126 | -10/Exiles | Found Exiles lab abandoned 3344 | -10/Exiles | Discovered new exit (range 14) 3361 | -10/Exiles | Entered Mines 3374 | -9/Mines | Met a Derelict bent on vengeance 3437 | -9/Mines | Received a Mining Laser from a helpful Derelict 3525 | -9/Mines | Assisted by bots powering up and referring to "LRC-V3" 3554 | -9/Mines | Discovered new exit (range 15) 3611 | -9/Mines | Found the Drone Emporium 3618 | -9/Mines | Found Prototype Device 3618 | -9/Mines | Identified Thief Drone Bay 3791 | -9/Mines | Central database locked down 3887 | -9/Mines | Assembled infested the area 3953 | -9/Mines | Core integrity fell below 50% 3962 | -9/Mines | Core integrity fell below 20% 3967 | -9/Mines | Destroyed by D-53 Grenadier with Mini Grenade Launcher Last Messages --------------- 03947_ The unstable cave ceiling collapses. 03948_ Lgt. Armor Plating destroyed. 03951_ The unstable cave ceiling collapses. 03953_ Lgt. Ion Engine destroyed. 03956_ Lgt. Treads destroyed. 03957_ Grenade Launcher destroyed. 03957_ Lgt. Treads destroyed. 03958_ The unstable cave ceiling collapses. 03958_ Assault Rifle destroyed. 03959_ The unstable cave ceiling collapses. 03962_ Assault Rifle destroyed. 03964_ R-06 Scavenger destroyed. 03965_ The unstable cave ceiling collapses. 03965_ as-92975 destroyed. 03965_ as-28970 destroyed. 03965_ as-04324 destroyed. 03965_ as-99465 destroyed. 03966_ The unstable cave ceiling collapses. 03967_ as-69945 destroyed. 03967_ D-53 Grenadier destroyed. Map ----- +----------------------------------------------------+ | ??????????????????????#" ###?# #?# < T#? | | ??????????????????????#" ##?### ### #?? | | ??????????????????????#" #X ##?# #?? | | ??????????????????????##""## ### #?? | | ???????????????????????#### ## ##### #?? | | ??????????????????????## #???### ###?? | | ????????????????????### ## #?????# #???? | | ???????????????????## ### #?????# #???? | | ??????????????????## ### #?????# #???? | | ??????????????????# ### #?????# #???? | | ??????????????????####?## ####?????# #???? | | ????????????????????????### ##????????#% #???? | | ??????????????????????????#######???????### !#???? | | ????????????????????????????????????????#%% #???? | | ????????????????????????????????????????# ####???? | | ????????????????????????????????????????# #??????? | | ????????????????????????????????????????# #??????? | | ????????????????????????????????????????# #??????? | | ??????????????????????????????########### #??????? | | ??????????????????????????????# t= %[%= #??????? | | ?????????????????????????????## ##########??????? | | ????????????????????????????## #???????????????? | | ???????????????#k############ #???????????????? | | ???????????????# % ##??????????????? | | ???????????????# #??????????????? | | ????????????????##### @ #??????????????? | | ????????????????????# # ##??????????????? | | ????????????????????# ##???????????????? | | ????????????????????# ##????????????????? | | ????????????????????# # #????????????????? | | ????????????????????## #????????????????? | | ?????????????????????## ##???????????##### | | ?????????????????????# #??????????? | | ?????????????????????# d #%#####?????? | | ?????????????????????## # # ####% """ | | ??????????????????????# #*! % [*% """ | | ??????????????????????# ## ########## """ | | ??????????????????????# % #???????? | | ??????????????????????### *= #????????? | | ????????????????????????# % #????????? | | ????????????????????????# # %=##??????????#### | | ????????????????????????## #??????????????? | | ?????????????????????????##########??????????????? | | ?????????????????????????????????????????????????? | | | | | | | | | | | | | +----------------------------------------------------+ Best States ------------- Heat Dissipation 25 Energy Generation 10 Energy Capacity 125 Matter Stores 300 Matter Capacity 300 Sight Range 16 Terrain Scan Density 10 Armor Coverage 150 Evasion (%) 40 Recoil Reduction 2 Salvage Targeting 1 Item Schematics ----------------- Huge Storage Unit | -10/Materials | Hacked Robot Schematics ------------------ None Fabricated ------------ Nothing Alien Tech Used ----------------- None Achievements -------------- None Challenges ------------ None Game ------ Seed SystemMicroScanner Manual? 0 Play Time 00:16:27 Cumulative 525.7 hours Start 2023.12.04 @ 18:38:45 End 2023.12.04 @ 18:56:37 Sessions 1 Manual Loads 0 Difficulty Rogue Special Mode None Game No. 583 Rogue 496 Adventurer 87 Explorer 0 Win Type - Total 29 Types 8/0/16/1/1/0/3/0/0 Lore% 92 Gallery% 93 Achievement% 78 Wizard Run 0 Options --------- ASCII 0 Keyboard 1 Movement Numpad Keybinds 0 Fullscreen 1 Font 18/SmallcapsGlow Map View 76x50 Tactical HUD 1 Map Filters NONE Filters NONE Steam 1 RUN: fd45689f-de7f-4902-b789-fb24f83d9cfa